fUSD/lending_fUSD_20240409
["ID","MTS","AMOUNT","RATE_DAILY","PERIOD"]
[321970240,1712661039100,-508.87,0.00020821,2]
[321970241,1712661039111,-1972.08,0.00020821,2]
[321970242,1712661039120,-500.0,0.00020821,2]
[321970243,1712661039130,-500.0,0.00020821,2]
[321970244,1712661039140,-1170.25,0.00020821,2]
[321970245,1712661039150,-500.0,0.00020821,2]
[321970246,1712661039160,-1192.25,0.00020821,2]
[321970248,1712661039171,-500.0,0.00020821,2]
[321970249,1712661039182,-2527.19,0.00020821,2]
[321970251,1712661039194,-500.0,0.00020821,2]
[321970254,1712661039204,-500.0,0.00020821,2]
[321970256,1712661039215,-508.45417727,0.00020821,2]
[321970257,1712661039226,-500.0,0.00020821,2]
[321970259,1712661039236,-768.73,0.00020821,2]
[321970262,1712661039247,-2371.4,0.00020821,2]
[321970264,1712661039257,-500.0,0.00020821,2]
[321970266,1712661039267,-500.0,0.00020821,2]
[321970268,1712661039278,-819.9,0.00020821,2]
[321970269,1712661039288,-500.0,0.00020821,2]
[321970272,1712661039298,-500.0,0.00020821,2]
[321970273,1712661039308,-500.0,0.00020821,2]
[321970275,1712661039319,-500.0,0.00020821,2]
[321970278,1712661039329,-500.0,0.00020821,2]
[321970279,1712661039338,-500.0,0.00020821,2]
[321970281,1712661039348,-1198.25,0.00020821,2]
[321970283,1712661039358,-1135.93,0.00020821,2]
[321970285,1712661039369,-1189.92,0.00020821,2]
[321970287,1712661039379,-500.0,0.00020821,2]
[321970289,1712661039389,-2422.21,0.00020821,2]
[321970291,1712661039401,-1017.54,0.00020821,2]
[321970293,1712661039411,-500.0,0.00020821,2]
[321970295,1712661039422,-1688.89,0.00020821,2]
[321970297,1712661039431,-777.92,0.00020821,2]
[321970300,1712661039442,-741.3,0.00020821,2]
[321970302,1712661039452,-974.02,0.00020821,2]
[321970304,1712661039461,-724.69,0.00020821,2]
[321970305,1712661039471,-1175.69,0.00020821,2]
[321970308,1712661039481,-500.0,0.00020821,2]
[321970309,1712661039490,-500.0,0.00020821,2]
[321970311,1712661039500,-968.68,0.00020821,2]
[321970313,1712661039509,-668.7,0.00020821,2]
[321970315,1712661039519,-2482.94,0.00020821,2]
[321970317,1712661039528,-1034.81,0.00020821,2]
[321970349,1712661039790,-500.0,0.00020821,2]
[321970351,1712661039799,-5049.73,0.00020821,2]
[321970353,1712661039809,-2517.39,0.00020821,2]
[321970356,1712661039819,-500.0,0.00020821,2]
[321970358,1712661039828,-500.0,0.00020821,2]
[321970360,1712661039838,-684.04,0.00020821,2]
[321970362,1712661039847,-1843.55,0.00020821,2]
[321970364,1712661039857,-604.8,0.00020821,2]
[321970366,1712661039867,-1411.58,0.00020821,2]
[321970368,1712661039877,-6290.34,0.00020821,2]
[321970370,1712661039886,-4555.15,0.00020821,2]
[321970372,1712661039895,-2725.57,0.00020821,2]
[321970374,1712661039905,-500.0,0.00020821,2]
[321970375,1712661039916,-500.0,0.00020821,2]
[321970376,1712661039928,-3219.15,0.00020821,2]
[321970377,1712661039937,-500.0,0.00020821,2]
[321970378,1712661039946,-500.0,0.00020821,2]
[321970379,1712661039956,-1213.92,0.00020821,2]
[321970380,1712661039966,-538.08,0.00020821,2]
[321970381,1712661039975,-500.0,0.00020821,2]
[321970382,1712661039985,-500.0,0.00020821,2]
[321970383,1712661039996,-500.0,0.00020821,2]
[321970384,1712661040006,-12558.46,0.00020821,2]
[321970385,1712661040015,-500.0,0.00020821,2]
[321970386,1712661040025,-1694.92,0.00020821,2]
[321970387,1712661040034,-500.0,0.00020821,2]
[321970388,1712661040044,-599.97,0.00020821,2]
[321970389,1712661040053,-500.0,0.00020821,2]
[321970390,1712661040063,-500.0,0.00020821,2]
[321970391,1712661040073,-1817.14,0.00020821,2]
[321970392,1712661040085,-500.0,0.00020821,2]
[321970393,1712661040095,-4686.84,0.00020821,2]
[321970394,1712661040105,-500.0,0.00020821,2]
[321970395,1712661040114,-500.0,0.00020821,2]
[321970396,1712661040124,-500.0,0.00020821,2]
[321970397,1712661040134,-1667.75,0.00020821,2]
[321970398,1712661040143,-500.0,0.00020821,2]
[321970399,1712661040153,-534.81,0.00020821,2]
[321970400,1712661040162,-500.0,0.00020821,2]
[321970401,1712661040172,-1504.01,0.00020821,2]
[321970402,1712661040182,-7062.17,0.00020821,2]
[321970403,1712661040191,-500.0,0.00020821,2]
[321970404,1712661040201,-47205.21,0.00020821,2]
[321970405,1712661040210,-500.0,0.00020821,2]
[321970406,1712661040220,-3771.87,0.00020821,2]
[321970407,1712661040230,-9841.52,0.00020821,2]
[321970408,1712661040239,-1362.74,0.00020821,2]
[321970409,1712661040248,-500.0,0.00020821,2]
[321970410,1712661040257,-500.0,0.00020821,2]
[321970411,1712661040266,-2624.15,0.00020821,2]
[321970412,1712661040276,-613.96,0.00020821,2]
[321970413,1712661040285,-1249.49,0.00020821,2]
[321970414,1712661040294,-500.0,0.00020821,2]
[321970415,1712661040303,-556.65,0.00020821,2]
[321970416,1712661040313,-1630.99,0.00020821,2]
[321970417,1712661040322,-5002.52,0.00020821,2]
[321970418,1712661040331,-5907.87,0.00020821,2]
[321970419,1712661040340,-11226.07,0.00020821,2]
[321970420,1712661040349,-500.0,0.00020821,2]
[321970421,1712661040358,-500.0,0.00020821,2]
[321970422,1712661040368,-500.0,0.00020821,2]
[321970423,1712661040378,-2567.34,0.00020821,2]
[321970424,1712661040388,-500.0,0.00020821,2]
[321970425,1712661040397,-500.0,0.00020821,2]
[321970426,1712661040407,-500.0,0.00020821,2]
[321970427,1712661040417,-500.0,0.00020821,2]
[321970428,1712661040426,-500.0,0.00020821,2]
[321970429,1712661040436,-3011.07,0.00020821,2]
[321970430,1712661040446,-542.54,0.00020821,2]
[321970432,1712661040456,-1753.83,0.00020821,2]
[321970433,1712661040465,-500.0,0.00020821,2]
[321970435,1712661040476,-1325.94,0.00020821,2]
[321970436,1712661040487,-500.0,0.00020821,2]
[321970437,1712661040498,-500.0,0.00020821,2]
[321970438,1712661040508,-500.0,0.00020821,2]
[321970439,1712661040518,-2392.22,0.00020821,2]
[321970440,1712661040529,-5285.31,0.00020821,2]
[321970441,1712661040539,-3131.49,0.00020821,2]
[321970442,1712661040551,-500.0,0.00020821,2]
[321970443,1712661040561,-500.0,0.00020821,2]
[321970444,1712661040571,-3059.38,0.00020821,2]
[321970445,1712661040580,-500.0,0.00020821,2]
[321970446,1712661040590,-2816.8,0.00020821,2]
[321970447,1712661040600,-500.0,0.00020821,2]
[321970448,1712661040610,-500.0,0.00020821,2]
[321970449,1712661040622,-500.0,0.00020821,2]
[321970450,1712661040631,-2726.43,0.00020821,2]
[321970451,1712661040641,-5529.38,0.00020821,2]
[321970452,1712661040651,-508.82072668,0.00020821,2]
[321970453,1712661040661,-500.0,0.00020821,2]
[321970454,1712661040671,-500.0,0.00020821,2]
[321970455,1712661040681,-3622.72,0.00020821,2]
[321970456,1712661040691,-500.0,0.00020821,2]
[321970457,1712661040702,-590.15556196,0.00020821,2]
[321970458,1712661040712,-500.0,0.00020821,2]
[321970459,1712661040722,-6788.86,0.00020821,2]
[321970460,1712661040732,-500.0,0.00020821,2]
[321970461,1712661040742,-754.38,0.00020821,2]
[321970462,1712661040753,-6376.28,0.00020821,2]
[321970463,1712661040762,-912.44,0.00020821,2]
[321970464,1712661040772,-500.0,0.00020821,2]
[321970465,1712661040782,-6082.6,0.00020821,2]
[321970466,1712661040792,-768.65,0.00020821,2]
[321970467,1712661040802,-500.0,0.00020821,2]
[321970468,1712661040811,-500.0,0.00020821,2]
[321970469,1712661040821,-500.0,0.00020821,2]
[321970470,1712661040830,-750.91,0.00020821,2]
[321970471,1712661040840,-500.0,0.00020821,2]
[321970472,1712661040852,-500.0,0.00020821,2]
[321970473,1712661040862,-3130.76,0.00020821,2]
[321970474,1712661040876,-1088.34,0.00020821,2]
[321970475,1712661040886,-2284.07,0.00020821,2]
[321970476,1712661040898,-4028.63,0.00020821,2]
[321970477,1712661040908,-500.0,0.00020821,2]
[321970478,1712661040919,-997.15,0.00020821,2]
[321970479,1712661040930,-500.0,0.00020821,2]
[321970480,1712661040940,-551.91,0.00020821,2]
[321970481,1712661040950,-3526.05,0.00020821,2]
[321970482,1712661040961,-2094.0,0.00020821,2]
[321970483,1712661040972,-23931.5,0.00020821,2]
[321970484,1712661040983,-500.0,0.00020821,2]
[321970485,1712661040993,-564.73353557,0.00020821,2]
[321970486,1712661041003,-500.0,0.00020821,2]
[321970487,1712661041013,-500.0,0.00020821,2]
[321970488,1712661041023,-156.21182715,0.00020821,2]
[321970489,1712661041033,-500.0,0.00020821,2]
[321970490,1712661041043,-2298.38,0.00020821,2]
[321970491,1712661041053,-10878.68,0.00020821,2]
[321970492,1712661041064,-6249.97,0.00020821,2]
[321970493,1712661041074,-500.0,0.00020821,2]
[321970494,1712661041084,-3377.13,0.00020821,2]
[321970495,1712661041096,-500.0,0.00020821,2]
[321970496,1712661041108,-3540.3,0.00020821,2]
[321970497,1712661041125,-904.39,0.00020821,2]
[321970498,1712661041134,-1104.27,0.00020821,2]
[321970499,1712661041145,-500.0,0.00020821,2]
[321970500,1712661041154,-1571.21,0.00020821,2]
[321970501,1712661041165,-1617.61,0.00020821,2]
[321970502,1712661041177,-500.0,0.00020821,2]
[321970503,1712661041188,-500.0,0.00020821,2]
[321970504,1712661041198,-2100.76,0.00020821,2]
[321970505,1712661041208,-542.25,0.00020821,2]
[321970506,1712661041219,-500.0,0.00020821,2]
[321970507,1712661041230,-500.0,0.00020821,2]
[321970508,1712661041241,-3271.88,0.00020821,2]
[321970509,1712661041252,-986.75,0.00020821,2]
[321970510,1712661041261,-3755.59,0.00020821,2]
[321970511,1712661041272,-3632.17,0.00020821,2]
[321970512,1712661041283,-15792.2,0.00020821,2]
[321970513,1712661041294,-507.94255165,0.00020821,2]
[321970514,1712661041305,-1735.44,0.00020821,2]
[321970515,1712661041318,-2507.69,0.00020821,2]
[321970516,1712661041328,-500.0,0.00020821,2]
[321970517,1712661041340,-500.0,0.00020821,2]
[321970518,1712661041349,-656.19,0.00020821,2]
[321970519,1712661041360,-2941.69,0.00020821,2]
[321970520,1712661041371,-664.88,0.00020821,2]
[321970521,1712661041382,-500.0,0.00020821,2]
[321970522,1712661041392,-500.0,0.00020821,2]
[321970523,1712661041401,-500.0,0.00020821,2]
[321970524,1712661041411,-677.91,0.00020821,2]
[321970525,1712661041421,-2270.02,0.00020821,2]
[321970526,1712661041431,-1259.34,0.00020821,2]
[321970527,1712661041441,-500.0,0.00020821,2]
[321970528,1712661041452,-670.28,0.00020821,2]
[321970529,1712661041462,-3957.56,0.00020821,2]
[321970530,1712661041472,-3957.56,0.00020821,2]
[321970531,1712661041483,-4667.81,0.00020821,2]
[321970532,1712661041494,-3957.56,0.00020821,2]
[321970533,1712661041504,-3957.56,0.00020821,2]
[321970534,1712661041514,-3957.56,0.00020821,2]
[321970535,1712661041524,-3957.56,0.00020821,2]
[321970536,1712661041534,-3957.56,0.00020821,2]
[321970537,1712661041543,-3957.56,0.00020821,2]
[321970538,1712661041553,-500.0,0.00020821,2]
[321970539,1712661041563,-3957.56,0.00020821,2]
[321970540,1712661041573,-3957.56,0.00020821,2]
[321970541,1712661041583,-3957.56,0.00020821,2]
[321970542,1712661041593,-3438.36,0.00020821,2]
[321970543,1712661041603,-3957.56,0.00020821,2]
[321970544,1712661041613,-3957.56,0.00020821,2]
[321970545,1712661041624,-3957.56,0.00020821,2]
[321970546,1712661041635,-500.0,0.00020821,2]
[321970547,1712661041645,-3957.56,0.00020821,2]
[321970548,1712661041656,-3103.65,0.00020821,2]
[321970549,1712661041667,-3957.56,0.00020821,2]
[321970550,1712661041677,-3957.56,0.00020821,2]
[321970551,1712661041687,-500.0,0.00020821,2]
[321970552,1712661041697,-3957.56,0.00020821,2]
[321970553,1712661041707,-500.0,0.00020821,2]
[321970554,1712661041718,-3957.56,0.00020821,2]
[321970555,1712661041728,-635.18,0.00020821,2]
[321970556,1712661041737,-3957.56,0.00020821,2]
[321970557,1712661041747,-3957.56,0.00020821,2]
[321970558,1712661041757,-3957.56,0.00020821,2]
[321970559,1712661041767,-3957.56,0.00020821,2]
[321970560,1712661041777,-3957.61,0.00020821,2]
[321970561,1712661041787,-500.0,0.00020821,2]
[321970562,1712661041798,-500.0,0.00020821,2]
[321970563,1712661041809,-1736.85,0.00020821,2]
[321970564,1712661041820,-9356.96,0.00020821,2]
[321970565,1712661041831,-500.0,0.00020821,2]
[321970566,1712661041842,-19608.29,0.00020821,2]
[321970567,1712661041852,-1127.75,0.00020821,2]
[321970568,1712661041861,-1919.48,0.00020821,2]
[321970569,1712661041872,-4695.13,0.00020821,2]
[321970570,1712661041881,-18174.13,0.00020821,2]
[321970571,1712661041891,-1925.86,0.00020821,2]
[321970572,1712661041901,-775.42,0.00020821,2]
[321970573,1712661041913,-5483.51,0.00020821,2]
[321970574,1712661041925,-2695.92,0.00020821,2]
[321970575,1712661041934,-500.0,0.00020821,2]
[321970576,1712661041944,-500.0,0.00020821,2]
[321970577,1712661041955,-4172.74,0.00020821,2]
[321970578,1712661041965,-1085.75,0.00020821,2]
[321970579,1712661041976,-500.0,0.00020821,2]
[321970580,1712661041985,-500.0,0.00020821,2]
[321970581,1712661041998,-500.0,0.00020821,2]
[321970582,1712661042010,-500.0,0.00020821,2]
[321970583,1712661042019,-3793.21,0.00020821,2]
[321970584,1712661042030,-823.24,0.00020821,2]
[321970585,1712661042043,-3819.09,0.00020821,2]
[321970586,1712661042054,-5807.52,0.00020821,2]
[321970587,1712661042064,-4200.68,0.00020821,2]
[321970588,1712661042077,-818.52,0.00020821,2]
[321970589,1712661042090,-500.0,0.00020821,2]
[321970590,1712661042103,-8763.45,0.00020821,2]
[321970591,1712661042116,-2081.1,0.00020821,2]
[321970592,1712661042127,-500.0,0.00020821,2]
[321970593,1712661042138,-500.0,0.00020821,2]
[321970594,1712661042149,-8802.58,0.00020821,2]
[321970595,1712661042160,-500.0,0.00020821,2]
[321970596,1712661042171,-500.0,0.00020821,2]
[321970597,1712661042181,-51178.18,0.00020821,2]
[321970598,1712661042192,-796.32,0.00020821,2]
[321970599,1712661042202,-500.0,0.00020821,2]
[321970600,1712661042211,-2120.22,0.00020821,2]
[321970601,1712661042222,-949.1,0.00020821,2]
[321970602,1712661042232,-2879.7,0.00020821,2]
[321970603,1712661042243,-500.0,0.00020821,2]
[321970604,1712661042352,-500.0,0.00020821,2]
[321970605,1712661042363,-500.0,0.00020821,2]
[321970606,1712661042375,-500.0,0.00020821,2]
[321970607,1712661042386,-41958.28,0.00020821,2]
[321970608,1712661042394,-6770.67,0.00020821,2]
[321970609,1712661042403,-500.0,0.00020821,2]
[321970610,1712661042412,-500.0,0.00020821,2]
[321970611,1712661042422,-19871.11,0.00020821,2]
[321970612,1712661042432,-500.0,0.00020821,2]
[321970613,1712661042441,-500.0,0.00020821,2]
[321970614,1712661042451,-1633.85,0.00020821,2]
[321970615,1712661042461,-2518.3,0.00020821,2]
[321970616,1712661042470,-500.90021876,0.00020821,2]
[321970617,1712661042480,-500.0,0.00020821,2]
[321970618,1712661042489,-500.0,0.00020821,2]
[321970619,1712661042498,-6942.81,0.00020821,2]
[321970620,1712661042508,-4349.93,0.00020821,2]
[321970621,1712661042519,-500.0,0.00020821,2]
[321970622,1712661042529,-841.12,0.00020821,2]
[321970623,1712661042539,-1858.48,0.00020821,2]
[321970624,1712661042549,-507.82132157,0.00020821,2]
[321970625,1712661042559,-1848.91,0.00020821,2]
[321970626,1712661042569,-2128.75,0.00020821,2]
[321970627,1712661042579,-4656.18,0.00020821,2]
[321970628,1712661042589,-3063.54,0.00020821,2]
[321970629,1712661042600,-938.73,0.00020821,2]
[321970630,1712661042610,-3429.75,0.00020821,2]
[321970631,1712661042623,-500.0,0.00020821,2]
[321970632,1712661042632,-500.0,0.00020821,2]
[321970633,1712661042642,-1073.95,0.00020821,2]
[321970634,1712661042652,-500.0,0.00020821,2]
[321970635,1712661042662,-3030.41,0.00020821,2]
[321970636,1712661042671,-500.0,0.00020821,2]
[321970637,1712661042680,-504.67,0.00020821,2]
[321970638,1712661042690,-9892.98,0.00020821,2]
[321970639,1712661042699,-1051.17,0.00020821,2]
[321970640,1712661042708,-6631.7,0.00020821,2]
[321970641,1712661042717,-500.0,0.00020821,2]
[321970642,1712661042727,-500.0,0.00020821,2]
[321970643,1712661042737,-5771.2,0.00020821,2]
[321970644,1712661042747,-500.0,0.00020821,2]
[321970645,1712661042757,-500.0,0.00020821,2]
[321970646,1712661042766,-1748.91,0.00020821,2]
[321970647,1712661042777,-500.0,0.00020821,2]
[321970648,1712661042786,-4764.86,0.00020821,2]
[321970649,1712661042796,-1329.85,0.00020821,2]
[321970650,1712661042806,-3209.53,0.00020821,2]
[321970651,1712661042815,-1785.09,0.00020821,2]
[321970654,1712661042824,-467.09897675,0.00020821,2]
[321970655,1712661042833,-500.0,0.00020821,2]
[321970656,1712661042842,-500.0,0.00020821,2]
[321970657,1712661042851,-2452.89,0.00020821,2]
[321970658,1712661042861,-3726.03,0.00020821,2]
[321970659,1712661042873,-500.0,0.00020821,2]
[321970660,1712661042882,-500.0,0.00020821,2]
[321970661,1712661042891,-3173.31,0.00020821,2]
[321970662,1712661042900,-500.0,0.00020821,2]
[321970663,1712661042912,-1841.17,0.00020821,2]
[321970664,1712661042921,-1116.83,0.00020821,2]
[321970665,1712661042930,-3509.0,0.00020821,2]
[321970666,1712661042939,-1446.77,0.00020821,2]
[321970667,1712661042948,-6966.1,0.00020821,2]
[321970668,1712661042958,-4058.96,0.00020821,2]
[321970669,1712661042966,-500.0,0.00020821,2]
[321970670,1712661042975,-500.0,0.00020821,2]
[321970671,1712661042986,-500.0,0.00020821,2]
[321970672,1712661042997,-506.06464039,0.00020821,2]
[321970673,1712661043007,-500.0,0.00020821,2]
[321970674,1712661043017,-639.52,0.00020821,2]
[321970675,1712661043026,-500.0,0.00020821,2]
[321970676,1712661043036,-2182.99,0.00020821,2]
[321970677,1712661043046,-2963.22,0.00020821,2]
[321970678,1712661043055,-10125.31,0.00020821,2]
[321970679,1712661043065,-500.0,0.00020821,2]
[321970680,1712661043074,-500.0,0.00020821,2]
[321970681,1712661043083,-699.96,0.00020821,2]
[321970682,1712661043092,-991.16,0.00020821,2]
[321970683,1712661043102,-3536.28,0.00020821,2]
[321970684,1712661043111,-3474.23,0.00020821,2]
[321970685,1712661043123,-5060.15,0.00020821,2]
[321970686,1712661043132,-8886.61,0.00020821,2]
[321970687,1712661043141,-500.0,0.00020821,2]
[321970688,1712661043150,-500.0,0.00020821,2]
[321970689,1712661043160,-500.0,0.00020821,2]
[321970690,1712661043169,-500.0,0.00020821,2]
[321970691,1712661043178,-500.0,0.00020821,2]
[321970692,1712661043188,-500.0,0.00020821,2]
[321970693,1712661043197,-3627.91,0.00020821,2]
[321970694,1712661043206,-4594.95,0.00020821,2]
[321970695,1712661043217,-5461.43,0.00020821,2]
[321970696,1712661043228,-1730.6,0.00020821,2]
[321970697,1712661043236,-1088.62,0.00020821,2]
[321970698,1712661043246,-500.0,0.00020821,2]
[321970699,1712661043257,-2784.72,0.00020821,2]
[321970700,1712661043267,-559.121078,0.00020821,2]
[321970701,1712661043277,-3545.54,0.00020821,2]
[321970702,1712661043288,-500.0,0.00020821,2]
[321970703,1712661043297,-30946.87,0.00020821,2]
[321970704,1712661043306,-500.0,0.00020821,2]
[321970705,1712661043316,-1731.61,0.00020821,2]
[321970706,1712661043325,-3334.34,0.00020821,2]
[321970707,1712661043334,-890.02,0.00020821,2]
[321970708,1712661043343,-500.0,0.00020821,2]
[321970709,1712661043352,-500.0,0.00020821,2]
[321970710,1712661043361,-610.18277878,0.00020821,2]
[321970711,1712661043372,-500.0,0.00020821,2]
[321970712,1712661043381,-775.6,0.00020821,2]
[321970713,1712661043390,-573.82,0.00020821,2]
[321970714,1712661043399,-2379.73,0.00020821,2]
[321970715,1712661043409,-500.0,0.00020821,2]
[321970716,1712661043419,-154.0,0.00020835,2]
[321970717,1712661043429,-12634.41005914,0.00020862,2]
[321970718,1712661043442,-82613.70405479,0.000209,2]
[321970720,1712661043451,-42115.45146758,0.000209,2]
[321970721,1712661043460,-165.31214275,0.000209,2]
[321970722,1712661043470,-801.47454805,0.000209,2]
[321970723,1712661043479,-1461.62354267,0.000209,2]
[321970724,1712661043488,-207.01650708,0.000209,2]
[321970725,1712661043498,-9381.50472436,0.000209,2]
[321970727,1712661043507,-523.53497318,0.000209,2]
[321970729,1712661043515,-322.06522953,0.00020918,2]
[321970730,1712661043524,-3002.43777506,0.00020945,2]
[321970731,1712661043533,-2805.81453626,0.00020977,2]
[321970732,1712661043542,-24049.55367527,0.0002098,2]
[321970733,1712661043551,-177.46028582,0.0002099,2]
[321970734,1712661043560,-14915.00811789,0.00020994,2]
[321970735,1712661043570,-14915.00811789,0.00020994,2]
[321970736,1712661043579,-14915.00811789,0.00020994,2]
[321970737,1712661043589,-14915.00811789,0.00020994,2]
[321970739,1712661043598,-14915.00811789,0.00020994,2]
[321970740,1712661043606,-14915.00811789,0.00020994,2]
[321970741,1712661043617,-14915.00811789,0.00020994,2]
[321970743,1712661043626,-14915.00811789,0.00020994,2]
[321970744,1712661043636,-14915.00811789,0.00020994,2]
[321970745,1712661043644,-14915.00711789,0.00020994,2]
[321970746,1712661043653,-1034.86815854,0.00020994,2]
[321970748,1712661043663,-714.86624918,0.00021,2]
[321970749,1712661043672,-521760.10390252,0.00021,2]
[321970750,1712661044197,-223137.378,0.00021,2]
[321970751,1712661045347,-157.44436762,0.00020013,2]
[321970752,1712661045356,-13918.55563239,0.00020821,2]
[321970753,1712661045367,-364.50411399,0.00020821,2]
[321970754,1712661045378,-70701.77796666,0.00020821,2]
[321970772,1712661045921,-1812.0752875,0.00020821,2]
[321970773,1712661046179,-157.44436762,0.000206,2]
[321970774,1712661046189,-948.22971335,0.00020821,2]
[321970775,1712661046240,-1492.2675304,0.00020821,2]
[321970776,1712661046256,-7177.51760019,0.00020821,2]
[321970777,1712661046277,-1373.51969191,0.00020821,2]
[321970778,1712661046839,-179133.53494468,0.00020821,2]
[321970779,1712661046850,-1520.78,0.00020821,2]
[321970780,1712661046859,-150.99,0.00020977,2]
[321970781,1712661046869,-9015.69,0.00020977,2]
[321970782,1712661046878,-610785.76444216,0.00021,2]
[321970783,1712661046889,-607.154874,0.00021,2]
[321970784,1712661046901,-357.21337863,0.00021,2]
[321970785,1712661046961,-840.64392545,0.00021,2]
[321970786,1712661046977,-21110.31120745,0.00021,2]
[321970787,1712661047067,-864411.63560315,0.00021,2]
[321970788,1712661047078,-1041.4084361,0.00021,2]
[321970789,1712661047090,-1964.82481855,0.00021,2]
[321970790,1712661047119,-2510.77325655,0.00021,2]
[321970791,1712661047131,-365.87398,0.00021,2]
[321970799,1712661047221,-782.26412632,0.00021,2]
[321970805,1712661047269,-428.03097649,0.00021,2]
[321970812,1712661047345,-1211809.90309252,0.00021,2]
[321970814,1712661047359,-500.0,0.00021,2]
[321970874,1712661048057,-376.33923214,0.0002082,2]
[321970876,1712661048066,-2003.19,0.00020821,2]
[321970908,1712661048438,-7143.37,0.00020821,2]
[321970910,1712661048448,-13218.44659723,0.00021,2]
[321970915,1712661048578,-3398.784,0.00021,2]
[321970916,1712661048590,-1760.73554116,0.00021,2]
[321970917,1712661048611,-863.3317181,0.00021,2]
[321970918,1712661048623,-255.41169921,0.00021,2]
[321970919,1712661048651,-10699.9999,0.00021,2]
[321970922,1712661048663,-33532.645909,0.00021,2]
[321970950,1712661048920,-500.0,0.00020821,2]
[321970952,1712661048930,-929.0735846,0.00021,2]
[321971436,1712661062922,150.5,0.0002099,15]
[321971437,1712661063368,455.0,0.0002099,15]
[321971438,1712661063479,150.5,0.0002098,15]
[321971439,1712661063828,455.0,0.0002098,15]
[321971440,1712661064300,455.0,0.0002097,15]
[321971441,1712661064357,164.73,0.0002099,15]
[321971442,1712661065212,455.0,0.00021905,15]
[321971443,1712661065298,455.0,0.00021895,15]
[321971444,1712661065720,455.0,0.00021885,15]
[321971445,1712661066190,455.0,0.00022998,15]
[321971446,1712661066658,455.0,0.00022988,15]
[321971447,1712661067193,455.0,0.0002396,15]
[321971448,1712661067772,464.49,0.0002395,15]
[321971449,1712661089138,151.0,0.00026535,120]
[321971450,1712661158088,297.90557915,0.000297,120]
[321971451,1712661183536,153.39,0.0002099,15]
[321971452,1712661187460,150.5,0.0002099,15]
[321971453,1712661218241,25000.0,0.00032887,30]
[321971454,1712661271095,152.92,0.00024329,15]
[321971455,1712661327004,25000.0,0.00032782,30]
[321971456,1712661387824,25000.0,0.00032782,30]
[321971457,1712661454302,312.04,0.00017688,2]
[321971458,1712661675433,151.0,0.0002657,120]
[321971459,1712661761313,152.92,0.00024329,15]
[321971460,1712661783012,150.5,0.0002099,15]
[321971461,1712661797503,25000.0,0.00032782,30]
[321971462,1712661938483,348.66,0.00017698,2]
[321971508,1712662232176,-362.42250485,0.00018457,2]
[321971509,1712662232185,-638.85953875,0.00018458,2]
[321971510,1712662232354,-372.19077761,0.00018458,2]
[321971511,1712662232411,-1283.23418364,0.00018458,2]
[321971512,1712662232421,-2000.0,0.00018938,2]
[321971513,1712662232430,-1250.0,0.00019,3]
[321971514,1712662232439,-1121.99621045,0.00019444,2]
[321971515,1712662232452,-1588.90400619,0.00019444,2]
[321971516,1712662232464,-436.20978336,0.00019444,2]
[321971517,1712662232473,-1021.14,0.00019493,2]
[321971518,1712662232482,-150.0,0.00019505,2]